[Event "*** Titled Tuesday Blitz"]
[Site "Chess.com"]
[Date "2020.10.20"]
[Round "7"]
[White "Mazetovic"]
[Black "vugarrasulov"]
[Result "0-1"]
[WhiteElo "2746"]
[BlackElo "2870"]
[TimeControl "180+1"]
[EndTime "11:21:59 PDT"]
[Termination "vugarrasulov won on time"]

1. e4 {[%clk 0:03:00.9]} 1... e5 {[%clk 0:02:59.5]} 2. Nf3 {[%clk 0:03:01.1]}
2... Nc6 {[%clk 0:03:00.1]} 3. Bb5 {[%clk 0:03:01.7]} 3... f5 {[%clk 0:02:59.4]}
4. d3 {[%clk 0:02:52.2]} 4... fxe4 {[%clk 0:02:58.9]} 5. dxe4 {[%clk 0:02:52.1]}
5... Nf6 {[%clk 0:02:59.5]} 6. Qd3 {[%clk 0:02:42.3]} 6... d6 {[%clk 0:02:47.2]}
7. Nc3 {[%clk 0:02:32.7]} 7... Be6 {[%clk 0:02:42.2]} 8. Bg5 {[%clk 0:02:13.2]}
8... Be7 {[%clk 0:02:35.3]} 9. Bxf6 {[%clk 0:02:12.9]} 9... Bxf6 {[%clk
0:02:35.1]} 10. Nd5 {[%clk 0:02:11.1]} 10... O-O {[%clk 0:02:29]} 11. c3 {[%clk
0:01:50.1]} 11... Kh8 {[%clk 0:02:28.2]} 12. Ba4 {[%clk 0:01:47]} 12... Bg4
{[%clk 0:02:21]} 13. O-O {[%clk 0:01:38.9]} 13... Ne7 {[%clk 0:02:10.3]} 14.
Nxe7 {[%clk 0:01:32.2]} 14... Qxe7 {[%clk 0:02:11.2]} 15. h3 {[%clk 0:01:27.2]}
15... Bh5 {[%clk 0:02:04]} 16. Bb3 {[%clk 0:01:26]} 16... c6 {[%clk 0:01:58.3]}
17. Rad1 {[%clk 0:01:21.3]} 17... Rad8 {[%clk 0:01:58.7]} 18. Rde1 {[%clk
0:01:16.5]} 18... b5 {[%clk 0:01:40.7]} 19. a4 {[%clk 0:01:12.6]} 19... a6
{[%clk 0:01:40]} 20. axb5 {[%clk 0:01:12.7]} 20... axb5 {[%clk 0:01:40.9]} 21.
Nh2 {[%clk 0:01:00.5]} 21... Bg5 {[%clk 0:01:38]} 22. Ng4 {[%clk 0:00:55.2]}
22... Bg6 {[%clk 0:01:26.4]} 23. Qe2 {[%clk 0:00:45.2]} 23... Rf4 {[%clk
0:01:25.4]} 24. Bc2 {[%clk 0:00:38.1]} 24... Rdf8 {[%clk 0:01:23.9]} 25. g3
{[%clk 0:00:30.9]} 25... Rf3 {[%clk 0:01:20.2]} 26. Kg2 {[%clk 0:00:28.6]} 26...
Bh5 {[%clk 0:01:13.9]} 27. Qxf3 {[%clk 0:00:24]} 27... Rxf3 {[%clk 0:01:13.3]}
28. Kxf3 {[%clk 0:00:24.5]} 28... b4 {[%clk 0:01:03.8]} 29. Ra1 {[%clk
0:00:18.6]} 29... Qf8+ {[%clk 0:00:40.5]} 30. Kg2 {[%clk 0:00:17.9]} 30... bxc3
{[%clk 0:00:41.1]} 31. bxc3 {[%clk 0:00:17.8]} 31... Bd2 {[%clk 0:00:40.3]} 32.
Ra3 {[%clk 0:00:14.3]} 32... h6 {[%clk 0:00:30.3]} 33. Rd1 {[%clk 0:00:12.6]}
33... Bg5 {[%clk 0:00:23.4]} 34. Ra6 {[%clk 0:00:11.2]} 34... Qc8 {[%clk
0:00:19.9]} 35. Rda1 {[%clk 0:00:10.3]} 35... Kh7 {[%clk 0:00:19.7]} 36. Bb3
{[%clk 0:00:06.7]} 36... Qb7 {[%clk 0:00:17.8]} 37. Bc4 {[%clk 0:00:05.4]} 37...
d5 {[%clk 0:00:16.4]} 38. Ra7 {[%clk 0:00:04.9]} 38... Qb2 {[%clk 0:00:11.1]}
39. exd5 {[%clk 0:00:05.2]} 39... Qxc3 {[%clk 0:00:11.6]} 40. Be2 {[%clk
0:00:02.9]} 40... cxd5 {[%clk 0:00:10.8]} 41. R7a3 {[%clk 0:00:02]} 41... Qd2
{[%clk 0:00:10.7]} 42. Bf3 {[%clk 0:00:02.1]} 42... e4 {[%clk 0:00:10.7]} 43.
Bd1 {[%clk 0:00:01.4]} 43... Bg6 {[%clk 0:00:10.7]} 44. Kf1 {[%clk 0:00:01.6]}
44... Bf5 {[%clk 0:00:10.2]} 45. Ra5 {[%clk 0:00:01.7]} 45... e3 {[%clk
0:00:10.1]} 46. Be2 {[%clk 0:00:01.8]} 46... exf2 {[%clk 0:00:08.8]} 47. R5a2
{[%clk 0:00:02.1]} 47... Qd4 {[%clk 0:00:08.6]} 48. Rd1 {[%clk 0:00:02.5]} 48...
Qe4 {[%clk 0:00:07.5]} 49. Nxf2 {[%clk 0:00:02.9]} 49... Qe3 {[%clk 0:00:05.8]}
50. Bd3 {[%clk 0:00:03.2]} 50... Bxd3+ {[%clk 0:00:05.2]} 51. Rxd3 {[%clk
0:00:04.1]} 51... Qc1+ {[%clk 0:00:05.2]} 52. Kg2 {[%clk 0:00:04]} 52... Be3
{[%clk 0:00:04.5]} 53. Re2 {[%clk 0:00:03.6]} 53... d4 {[%clk 0:00:03.4]} 54.
Ng4 {[%clk 0:00:03.4]} 54... Qc6+ {[%clk 0:00:03.8]} 55. Kh2 {[%clk 0:00:03.1]}
55... Qf3 {[%clk 0:00:03.5]} 56. Rdxe3 {[%clk 0:00:02.8]} 56... dxe3 {[%clk
0:00:03.7]} 57. Rxe3 {[%clk 0:00:03.3]} 57... Qd1 {[%clk 0:00:03.5]} 58. Kg2
{[%clk 0:00:03.1]} 58... Qd2+ {[%clk 0:00:03.3]} 59. Kf3 {[%clk 0:00:02.2]}
59... Qd5+ {[%clk 0:00:02.9]} 60. Kf2 {[%clk 0:00:02.8]} 60... Qh1 {[%clk
0:00:03.5]} 61. h4 {[%clk 0:00:03.1]} 61... Qd1 {[%clk 0:00:03.5]} 62. Re2
{[%clk 0:00:03.3]} 62... Qd4+ {[%clk 0:00:03.4]} 63. Ne3 {[%clk 0:00:03.8]}
63... Qf6+ {[%clk 0:00:03.1]} 64. Kg1 {[%clk 0:00:03.5]} 64... Qc6 {[%clk
0:00:04]} 65. Ng2 {[%clk 0:00:03.5]} 65... Qf3 {[%clk 0:00:04]} 66. Re3 {[%clk
0:00:03.2]} 66... Qd1+ {[%clk 0:00:04.6]} 67. Kh2 {[%clk 0:00:03.7]} 67... Qd4
{[%clk 0:00:05]} 68. Rf3 {[%clk 0:00:03.6]} 68... g5 {[%clk 0:00:04.1]} 69. hxg5
{[%clk 0:00:03.5]} 69... hxg5 {[%clk 0:00:05]} 70. Ne3 {[%clk 0:00:03.4]} 70...
Kg6 {[%clk 0:00:05]} 71. g4 {[%clk 0:00:03.5]} 71... Qd2+ {[%clk 0:00:04.2]} 72.
Kg3 {[%clk 0:00:04]} 72... Qe2 {[%clk 0:00:04.3]} 73. Nf5 {[%clk 0:00:04]} 73...
Qe1+ {[%clk 0:00:04]} 74. Kg2 {[%clk 0:00:03.9]} 74... Qd2+ {[%clk 0:00:04.6]}
75. Rf2 {[%clk 0:00:03.4]} 75... Qd5+ {[%clk 0:00:04.1]} 76. Kg3 {[%clk
0:00:03.6]} 76... Qb3+ {[%clk 0:00:04.5]} 77. Rf3 {[%clk 0:00:03.4]} 77... Qb1
{[%clk 0:00:04.2]} 78. Ne3 {[%clk 0:00:02.6]} 78... Qg1+ {[%clk 0:00:03.2]} 79.
Ng2 {[%clk 0:00:02.7]} 79... Kg7 {[%clk 0:00:02.9]} 80. Rf5 {[%clk 0:00:01.9]}
80... Kg6 {[%clk 0:00:03.4]} 81. Rf3 {[%clk 0:00:00.8]} 81... Qd4 {[%clk
0:00:03.9]} 0-1

[Event "*** Titled Tuesday Blitz"]
[Site "Chess.com"]
[Date "2020.10.20"]
[Round "7"]
[White "annamaja"]
[Black "ShahMatKanal"]
[Result "1/2-1/2"]
[WhiteElo "2286"]
[BlackElo "2435"]
[TimeControl "180+1"]
[EndTime "11:23:34 PDT"]
[Termination "Game drawn by 50-move rule"]

1. e4 {[%clk 0:03:00.9]} 1... c5 {[%clk 0:02:58.2]} 2. Nf3 {[%clk 0:03:00.4]}
2... Nc6 {[%clk 0:02:58.6]} 3. d4 {[%clk 0:02:59.9]} 3... cxd4 {[%clk
0:02:59.5]} 4. Nxd4 {[%clk 0:03:00.6]} 4... e5 {[%clk 0:03:00.1]} 5. Nb5 {[%clk
0:03:00.6]} 5... a6 {[%clk 0:03:00.4]} 6. Nd6+ {[%clk 0:03:00.2]} 6... Bxd6
{[%clk 0:03:00.9]} 7. Qxd6 {[%clk 0:03:00.9]} 7... Qf6 {[%clk 0:03:01.8]} 8.
Qxf6 {[%clk 0:02:59.8]} 8... Nxf6 {[%clk 0:03:02.7]} 9. Nc3 {[%clk 0:03:00.6]}
9... d5 {[%clk 0:03:03.1]} 10. Nxd5 {[%clk 0:02:58.6]} 10... Nxd5 {[%clk
0:03:02.8]} 11. exd5 {[%clk 0:02:59.5]} 11... Nb4 {[%clk 0:03:01]} 12. Bd3
{[%clk 0:03:00]} 12... Nxd3+ {[%clk 0:03:00.3]} 13. cxd3 {[%clk 0:03:00.9]}
13... Bf5 {[%clk 0:03:00.6]} 14. O-O {[%clk 0:02:53.2]} 14... O-O-O {[%clk
0:02:56.3]} 15. f4 {[%clk 0:02:41.1]} 15... Bxd3 {[%clk 0:02:53.4]} 16. Rd1
{[%clk 0:02:36.7]} 16... e4 {[%clk 0:02:52.1]} 17. b3 {[%clk 0:02:28.9]} 17...
Rxd5 {[%clk 0:02:49.1]} 18. Bb2 {[%clk 0:02:29.3]} 18... e3 {[%clk 0:02:33.8]}
19. Rac1+ {[%clk 0:02:22.5]} 19... Kd7 {[%clk 0:01:45.9]} 20. Bxg7 {[%clk
0:02:13.8]} 20... Rg8 {[%clk 0:01:32.4]} 21. Be5 {[%clk 0:02:09.1]} 21... Ke6
{[%clk 0:01:22.1]} 22. Re1 {[%clk 0:01:57.5]} 22... e2 {[%clk 0:01:07.2]} 23.
Kf2 {[%clk 0:01:53.9]} 23... h5 {[%clk 0:00:59.3]} 24. Rc3 {[%clk 0:01:47.8]}
24... h4 {[%clk 0:00:55]} 25. Kf3 {[%clk 0:01:32.3]} 25... Bf5 {[%clk
0:00:44.8]} 26. h3 {[%clk 0:01:20.5]} 26... Rxe5 {[%clk 0:00:30.8]} 27. fxe5
{[%clk 0:01:08.4]} 27... Rg3+ {[%clk 0:00:30]} 28. Kf4 {[%clk 0:01:08.6]} 28...
Rxc3 {[%clk 0:00:28.6]} 29. Rxe2 {[%clk 0:01:09.1]} 29... Rc2 {[%clk 0:00:20.9]}
30. Re3 {[%clk 0:00:53.2]} 30... Rxg2 {[%clk 0:00:16.6]} 31. Rc3 {[%clk
0:00:50.6]} 31... Rg3 {[%clk 0:00:12.4]} 32. Rc7 {[%clk 0:00:47.5]} 32... Rxh3
{[%clk 0:00:09]} 33. Rxb7 {[%clk 0:00:47.8]} 33... Bd3 {[%clk 0:00:08.4]} 34.
Rb6+ {[%clk 0:00:44.3]} 34... Kd5 {[%clk 0:00:07.8]} 35. Rd6+ {[%clk 0:00:37.2]}
35... Kc5 {[%clk 0:00:07.5]} 36. Kg4 {[%clk 0:00:37.2]} 36... Re3 {[%clk
0:00:05.7]} 37. Kxh4 {[%clk 0:00:34.8]} 37... Bg6 {[%clk 0:00:04.9]} 38. Rxa6
{[%clk 0:00:34.2]} 38... Rxe5 {[%clk 0:00:04.5]} 39. a4 {[%clk 0:00:30]} 39...
Kb4 {[%clk 0:00:03.8]} 40. Rb6+ {[%clk 0:00:29.3]} 40... Ka5 {[%clk 0:00:03.9]}
41. Rb8 {[%clk 0:00:29.2]} 41... Re4+ {[%clk 0:00:03.1]} 42. Kg5 {[%clk
0:00:28.5]} 42... Rb4 {[%clk 0:00:04]} 43. Ra8+ {[%clk 0:00:27.9]} 43... Kb6
{[%clk 0:00:03.7]} 44. Rb8+ {[%clk 0:00:28.4]} 44... Kc5 {[%clk 0:00:03.9]} 45.
Rc8+ {[%clk 0:00:28.7]} 45... Kd4 {[%clk 0:00:03.8]} 46. a5 {[%clk 0:00:20.2]}
46... Rxb3 {[%clk 0:00:03.9]} 47. Kf6 {[%clk 0:00:14.3]} 47... Ra3 {[%clk
0:00:03.5]} 48. Ra8 {[%clk 0:00:13.8]} 48... Kc5 {[%clk 0:00:03.7]} 49. a6
{[%clk 0:00:13.9]} 49... Kb6 {[%clk 0:00:03.8]} 50. Rb8+ {[%clk 0:00:10.6]}
50... Ka7 {[%clk 0:00:03.9]} 51. Rb7+ {[%clk 0:00:10.7]} 51... Kxa6 {[%clk
0:00:03.7]} 52. Rb8 {[%clk 0:00:11.5]} 52... Ra5 {[%clk 0:00:03.9]} 53. Rb2
{[%clk 0:00:09.4]} 53... Rb5 {[%clk 0:00:04.1]} 54. Ra2+ {[%clk 0:00:09.8]}
54... Kb6 {[%clk 0:00:04.6]} 55. Ra8 {[%clk 0:00:09.8]} 55... Rc5 {[%clk
0:00:04.5]} 56. Rb8+ {[%clk 0:00:10.3]} 56... Ka5 {[%clk 0:00:04.9]} 57. Ra8+
{[%clk 0:00:10.7]} 57... Kb4 {[%clk 0:00:05.1]} 58. Rb8+ {[%clk 0:00:11.4]}
58... Kc4 {[%clk 0:00:06]} 59. Rb2 {[%clk 0:00:10.1]} 59... Kc3 {[%clk
0:00:05.6]} 60. Rf2 {[%clk 0:00:09.3]} 60... Rc4 {[%clk 0:00:04.7]} 61. Rf3+
{[%clk 0:00:08.7]} 61... Kb4 {[%clk 0:00:05.1]} 62. Rf2 {[%clk 0:00:08.9]} 62...
Kc5 {[%clk 0:00:05.3]} 63. Rf3 {[%clk 0:00:08.8]} 63... Rd4 {[%clk 0:00:05.3]}
64. Rf2 {[%clk 0:00:09.2]} 64... Kd5 {[%clk 0:00:05.5]} 65. Rf3 {[%clk
0:00:08.7]} 65... Kd6 {[%clk 0:00:05.6]} 66. Rf2 {[%clk 0:00:08.9]} 66... Rd5
{[%clk 0:00:05.4]} 67. Rf3 {[%clk 0:00:08.4]} 67... Kd7 {[%clk 0:00:05.7]} 68.
Rf4 {[%clk 0:00:07.8]} 68... Rd6+ {[%clk 0:00:06]} 69. Kg7 {[%clk 0:00:07.3]}
69... Ke7 {[%clk 0:00:06]} 70. Rf2 {[%clk 0:00:06.6]} 70... f5 {[%clk 0:00:05]}
71. Re2+ {[%clk 0:00:06.5]} 71... Re6 {[%clk 0:00:05.3]} 72. Rf2 {[%clk
0:00:02.6]} 72... Kd6 {[%clk 0:00:02.7]} 73. Kh6 {[%clk 0:00:03.1]} 73... Be8+
{[%clk 0:00:01.6]} 74. Kg5 {[%clk 0:00:03.7]} 74... Bd7 {[%clk 0:00:01.4]} 75.
Rxf5 {[%clk 0:00:01.5]} 75... Re3 {[%clk 0:00:02]} 76. Rf6+ {[%clk 0:00:02]}
76... Be6 {[%clk 0:00:02.3]} 77. Rf8 {[%clk 0:00:02.3]} 77... Re5+ {[%clk
0:00:02.4]} 78. Kh4 {[%clk 0:00:03]} 78... Rb5 {[%clk 0:00:03]} 79. Rd8+ {[%clk
0:00:03.3]} 79... Ke5 {[%clk 0:00:03.4]} 80. Rd2 {[%clk 0:00:04.2]} 80... Rb4+
{[%clk 0:00:03.6]} 81. Kg3 {[%clk 0:00:04.1]} 81... Bf5 {[%clk 0:00:04.5]} 82.
Rf2 {[%clk 0:00:03.9]} 82... Be4 {[%clk 0:00:05.1]} 83. Rf8 {[%clk 0:00:03.7]}
83... Rb3+ {[%clk 0:00:05.4]} 84. Kf2 {[%clk 0:00:03.4]} 84... Kd4 {[%clk
0:00:06.2]} 85. Ke2 {[%clk 0:00:03.9]} 85... Rb2+ {[%clk 0:00:06.3]} 86. Kf1
{[%clk 0:00:04]} 86... Ke3 {[%clk 0:00:07.2]} 87. Kg1 {[%clk 0:00:03.5]} 87...
Rb1+ {[%clk 0:00:07.2]} 88. Kh2 {[%clk 0:00:04]} 88... Rh1+ {[%clk 0:00:08.1]}
89. Kg3 {[%clk 0:00:04.5]} 89... Rg1+ {[%clk 0:00:09]} 90. Kh4 {[%clk
0:00:05.2]} 90... Bf3 {[%clk 0:00:08.8]} 91. Rf7 {[%clk 0:00:04.9]} 91... Kf2
{[%clk 0:00:08.7]} 92. Rf6 {[%clk 0:00:05.1]} 92... Rg4+ {[%clk 0:00:08.7]} 93.
Kh3 {[%clk 0:00:04.9]} 93... Ke3 {[%clk 0:00:08.7]} 94. Re6+ {[%clk 0:00:04.4]}
94... Kf4 {[%clk 0:00:07.9]} 95. Rf6+ {[%clk 0:00:04.9]} 95... Ke4 {[%clk
0:00:08.2]} 96. Re6+ {[%clk 0:00:04.9]} 96... Kf5 {[%clk 0:00:08.5]} 97. Re3
{[%clk 0:00:05.3]} 97... Bd1 {[%clk 0:00:07.7]} 98. Re1 {[%clk 0:00:05.3]} 98...
Rd4 {[%clk 0:00:07.8]} 99. Kg2 {[%clk 0:00:04.9]} 99... Kf4 {[%clk 0:00:07.3]}
100. Kf2 {[%clk 0:00:05.3]} 100... Bf3 {[%clk 0:00:06.9]} 101. Rc1 {[%clk
0:00:04.9]} 101... Rd2+ {[%clk 0:00:07]} 102. Ke1 {[%clk 0:00:04.9]} 102... Re2+
{[%clk 0:00:06.6]} 103. Kf1 {[%clk 0:00:05]} 103... Kg3 {[%clk 0:00:07.1]} 104.
Rc3 {[%clk 0:00:04.8]} 104... Rd2 {[%clk 0:00:06.9]} 105. Rc1 {[%clk 0:00:04.8]}
105... Rf2+ {[%clk 0:00:06.9]} 106. Ke1 {[%clk 0:00:05.1]} 106... Rh2 {[%clk
0:00:06.4]} 107. Rc3 {[%clk 0:00:04.3]} 107... Rg2 {[%clk 0:00:05.3]} 108. Kf1
{[%clk 0:00:03.3]} 108... Ra2 {[%clk 0:00:04.6]} 109. Ke1 {[%clk 0:00:03.9]}
109... Kf4 {[%clk 0:00:03.8]} 110. Rb3 {[%clk 0:00:03.8]} 110... Be4 {[%clk
0:00:03.6]} 111. Rc3 {[%clk 0:00:04]} 111... Rb2 {[%clk 0:00:03.6]} 112. Ra3
{[%clk 0:00:03.4]} 112... Ke5 {[%clk 0:00:03.6]} 113. Rc3 {[%clk 0:00:03.8]}
113... Kd4 {[%clk 0:00:03.9]} 114. Ra3 {[%clk 0:00:04]} 114... Bd3 {[%clk
0:00:04.5]} 115. Ra4+ {[%clk 0:00:03.9]} 115... Ke3 {[%clk 0:00:04.8]} 116. Ra1
{[%clk 0:00:04.4]} 116... Re2+ {[%clk 0:00:04.7]} 117. Kd1 {[%clk 0:00:03.8]}
117... Rd2+ {[%clk 0:00:05.6]} 118. Kc1 {[%clk 0:00:04.3]} 118... Rg2 {[%clk
0:00:06.5]} 119. Ra7 {[%clk 0:00:03.3]} 119... Rc2+ {[%clk 0:00:06.3]} 120. Kd1
{[%clk 0:00:03.3]} 120... Rb2 {[%clk 0:00:06]} 121. Re7+ {[%clk 0:00:02.7]}
121... Be4 {[%clk 0:00:06.3]} 122. Rc7 {[%clk 0:00:01.2]} 122... Rb1+ {[%clk
0:00:06.5]} 123. Rc1 {[%clk 0:00:01.7]} 123... Rb6 {[%clk 0:00:07.4]} 124. Rc7
{[%clk 0:00:01.6]} 124... Rh6 {[%clk 0:00:05.7]} 125. Kc1 {[%clk 0:00:01.7]}
1/2-1/2

[Event "*** Titled Tuesday Blitz"]
[Site "Chess.com"]
[Date "2020.10.20"]
[Round "8"]
[White "Mbneu"]
[Black "enriquebutti"]
[Result "1-0"]
[WhiteElo "2228"]
[BlackElo "2007"]
[TimeControl "180+1"]
[EndTime "11:30:56 PDT"]
[Termination "Mbneu won by resignation"]

1. d4 {[%clk 0:03:00.9]} 1... Nf6 {[%clk 0:02:59.2]} 2. c4 {[%clk 0:03:01.3]}
2... e6 {[%clk 0:02:57.6]} 3. Nc3 {[%clk 0:03:00]} 3... c5 {[%clk 0:02:56.9]} 4.
d5 {[%clk 0:02:57.2]} 4... exd5 {[%clk 0:02:55.6]} 5. cxd5 {[%clk 0:02:58.1]}
5... d6 {[%clk 0:02:55.6]} 6. e4 {[%clk 0:02:58.6]} 6... g6 {[%clk 0:02:55.2]}
7. f4 {[%clk 0:02:58.8]} 7... Bg7 {[%clk 0:02:53.8]} 8. Nf3 {[%clk 0:02:59.4]}
8... O-O {[%clk 0:02:53.1]} 9. Be2 {[%clk 0:03:00]} 9... Re8 {[%clk 0:02:51.1]}
10. e5 {[%clk 0:02:59.9]} 10... dxe5 {[%clk 0:02:50]} 11. fxe5 {[%clk
0:03:00.8]} 11... Ng4 {[%clk 0:02:49.4]} 12. e6 {[%clk 0:03:01.4]} 12... fxe6
{[%clk 0:02:44.4]} 13. Bg5 {[%clk 0:03:01.6]} 13... Bf6 {[%clk 0:02:43.4]} 14.
Bxf6 {[%clk 0:03:00.5]} 14... Qxf6 {[%clk 0:02:43]} 15. Qa4 {[%clk 0:02:59.5]}
15... Ne3 {[%clk 0:02:40.3]} 16. Qxe8+ {[%clk 0:02:56.4]} 1-0

[Event "*** Titled Tuesday Blitz"]
[Site "Chess.com"]
[Date "2020.10.20"]
[Round "8"]
[White "Omk124"]
[Black "cassoulet"]
[Result "0-1"]
[WhiteElo "2489"]
[BlackElo "2686"]
[TimeControl "180+1"]
[EndTime "11:31:41 PDT"]
[Termination "cassoulet won by resignation"]

1. e4 {[%clk 0:03:00.9]} 1... e6 {[%clk 0:03:00]} 2. d4 {[%clk 0:03:01.1]} 2...
d5 {[%clk 0:03:00.6]} 3. Nd2 {[%clk 0:03:01.4]} 3... c5 {[%clk 0:03:00.2]} 4.
exd5 {[%clk 0:03:01.9]} 4... Qxd5 {[%clk 0:02:59.4]} 5. Ngf3 {[%clk 0:03:02]}
5... cxd4 {[%clk 0:02:59.4]} 6. Bc4 {[%clk 0:03:02.6]} 6... Qd6 {[%clk
0:02:59.7]} 7. O-O {[%clk 0:03:02.9]} 7... Nf6 {[%clk 0:03:00.2]} 8. Nb3 {[%clk
0:03:03.1]} 8... Nc6 {[%clk 0:03:00.1]} 9. Qe2 {[%clk 0:03:03]} 9... Be7 {[%clk
0:02:59]} 10. Rd1 {[%clk 0:03:03.3]} 10... e5 {[%clk 0:02:56.6]} 11. h3 {[%clk
0:03:02.8]} 11... O-O {[%clk 0:02:54.5]} 12. c3 {[%clk 0:03:02.4]} 12... Bf5
{[%clk 0:02:45.7]} 13. cxd4 {[%clk 0:03:00.8]} 13... e4 {[%clk 0:02:46.1]} 14.
Nh4 {[%clk 0:02:51.6]} 14... Be6 {[%clk 0:02:36.9]} 15. d5 {[%clk 0:02:50.9]}
15... Nxd5 {[%clk 0:02:34.4]} 16. Bxd5 {[%clk 0:02:50.9]} 16... Bxd5 {[%clk
0:02:33.3]} 17. Nf5 {[%clk 0:02:51.6]} 17... Qe5 {[%clk 0:02:29]} 18. Nxe7+
{[%clk 0:02:50.5]} 18... Nxe7 {[%clk 0:02:29.9]} 19. Be3 {[%clk 0:02:47.4]}
19... Be6 {[%clk 0:02:25.9]} 20. Bc5 {[%clk 0:02:45.5]} 20... Bxb3 {[%clk
0:02:24.1]} 21. Bxe7 {[%clk 0:02:40.2]} 21... Bxd1 {[%clk 0:02:23.9]} 0-1

[Event "*** Titled Tuesday Blitz"]
[Site "Chess.com"]
[Date "2020.10.20"]
[Round "8"]
[White "Infernal_XaM"]
[Black "KaterynaLagno"]
[Result "0-1"]
[WhiteElo "2857"]
[BlackElo "2715"]
[TimeControl "180+1"]
[EndTime "11:32:04 PDT"]
[Termination "KaterynaLagno won by resignation"]

1. d4 {[%clk 0:02:59.9]} 1... Nf6 {[%clk 0:02:59.4]} 2. c4 {[%clk 0:02:59.7]}
2... g6 {[%clk 0:02:59.7]} 3. Nc3 {[%clk 0:02:58.8]} 3... d5 {[%clk 0:02:59.9]}
4. cxd5 {[%clk 0:02:59.3]} 4... Nxd5 {[%clk 0:02:59.4]} 5. e4 {[%clk 0:02:59.9]}
5... Nxc3 {[%clk 0:02:59.6]} 6. bxc3 {[%clk 0:03:00.8]} 6... Bg7 {[%clk
0:03:00]} 7. Be3 {[%clk 0:02:57.9]} 7... c5 {[%clk 0:02:59]} 8. Nf3 {[%clk
0:02:57.9]} 8... O-O {[%clk 0:02:57.5]} 9. Qd2 {[%clk 0:02:55.9]} 9... Qa5
{[%clk 0:02:52.3]} 10. Rc1 {[%clk 0:02:53.9]} 10... Nd7 {[%clk 0:02:52.1]} 11.
e5 {[%clk 0:02:40.1]} 11... cxd4 {[%clk 0:02:40.7]} 12. cxd4 {[%clk 0:02:39]}
12... Qxd2+ {[%clk 0:02:39.9]} 13. Bxd2 {[%clk 0:02:36.3]} 13... Nb6 {[%clk
0:02:37.9]} 14. Bb4 {[%clk 0:02:33]} 14... Be6 {[%clk 0:02:31.4]} 15. Bxe7
{[%clk 0:02:20.4]} 15... Rfc8 {[%clk 0:02:31.2]} 16. Bc5 {[%clk 0:02:20.9]}
16... Nd7 {[%clk 0:02:22.3]} 17. Ba3 {[%clk 0:02:17.5]} 17... Rxc1+ {[%clk
0:02:19.5]} 18. Bxc1 {[%clk 0:02:17.1]} 18... Rc8 {[%clk 0:02:20.2]} 19. Kd2
{[%clk 0:02:14.2]} 19... Bh6+ {[%clk 0:02:19]} 0-1

[Event "*** Titled Tuesday Blitz"]
[Site "Chess.com"]
[Date "2020.10.20"]
[Round "8"]
[White "chessknight02"]
[Black "PhileKhoob"]
[Result "0-1"]
[WhiteElo "2301"]
[BlackElo "2544"]
[TimeControl "180+1"]
[EndTime "11:32:40 PDT"]
[Termination "PhileKhoob won by resignation"]

1. d4 {[%clk 0:03:00.9]} 1... Nf6 {[%clk 0:02:59]} 2. c4 {[%clk 0:02:57.1]} 2...
g6 {[%clk 0:02:58.9]} 3. Nc3 {[%clk 0:02:57.3]} 3... d5 {[%clk 0:02:59.4]} 4.
Nf3 {[%clk 0:02:56.1]} 4... Bg7 {[%clk 0:02:58.9]} 5. cxd5 {[%clk 0:02:56.7]}
5... Nxd5 {[%clk 0:02:58.8]} 6. g3 {[%clk 0:02:57.4]} 6... O-O {[%clk
0:02:58.4]} 7. Bg2 {[%clk 0:02:57.8]} 7... Nb6 {[%clk 0:02:58.6]} 8. O-O {[%clk
0:02:57.8]} 8... Nc6 {[%clk 0:02:59]} 9. e3 {[%clk 0:02:54.8]} 9... Re8 {[%clk
0:02:58.4]} 10. b3 {[%clk 0:02:54.5]} 10... e5 {[%clk 0:02:58.5]} 11. dxe5
{[%clk 0:02:54.7]} 11... Nxe5 {[%clk 0:02:59.4]} 12. Bb2 {[%clk 0:02:54.3]}
12... Qxd1 {[%clk 0:02:54.3]} 13. Rfxd1 {[%clk 0:02:53.4]} 13... Bg4 {[%clk
0:02:53.6]} 14. Nb5 {[%clk 0:02:09.4]} 14... Nxf3+ {[%clk 0:02:33.7]} 15. Bxf3
{[%clk 0:02:07.1]} 15... Bxf3 {[%clk 0:02:34.6]} 16. Bxg7 {[%clk 0:02:01.1]}
16... Kxg7 {[%clk 0:02:34.8]} 17. Nxc7 {[%clk 0:01:55.9]} 17... Bxd1 {[%clk
0:02:34.6]} 18. Rxd1 {[%clk 0:01:53.9]} 18... Red8 {[%clk 0:02:30.6]} 0-1

[Event "*** Titled Tuesday Blitz"]
[Site "Chess.com"]
[Date "2020.10.20"]
[Round "8"]
[White "AlexTriapishko"]
[Black "grunbergmihai"]
[Result "1-0"]
[WhiteElo "2788"]
[BlackElo "2506"]
[TimeControl "180+1"]
[EndTime "11:32:47 PDT"]
[Termination "AlexTriapishko won by resignation"]

1. b3 {[%clk 0:02:57.1]} 1... e5 {[%clk 0:02:57.6]} 2. Bb2 {[%clk 0:02:58]} 2...
Nc6 {[%clk 0:02:58]} 3. e3 {[%clk 0:02:57.7]} 3... Nf6 {[%clk 0:02:57.9]} 4. c4
{[%clk 0:02:58]} 4... Be7 {[%clk 0:02:46.7]} 5. a3 {[%clk 0:02:54.5]} 5... O-O
{[%clk 0:02:46.1]} 6. Qc2 {[%clk 0:02:55]} 6... d5 {[%clk 0:02:42.1]} 7. cxd5
{[%clk 0:02:54.9]} 7... Nxd5 {[%clk 0:02:41.8]} 8. Nf3 {[%clk 0:02:55.5]} 8...
Bf6 {[%clk 0:02:16]} 9. d3 {[%clk 0:02:53]} 9... Bg4 {[%clk 0:02:10]} 10. Nbd2
{[%clk 0:02:51.3]} 10... Qd7 {[%clk 0:02:05.3]} 11. Be2 {[%clk 0:02:48.8]} 11...
Rfe8 {[%clk 0:02:03]} 12. O-O {[%clk 0:02:47.3]} 12... Rad8 {[%clk 0:02:01.3]}
13. Ne4 {[%clk 0:02:47.5]} 13... Bf5 {[%clk 0:01:39.3]} 14. Nc5 {[%clk
0:02:40.9]} 14... Qc8 {[%clk 0:01:37.5]} 15. e4 {[%clk 0:02:41.3]} 15... Nf4
{[%clk 0:01:30.9]} 16. exf5 {[%clk 0:02:40.2]} 16... Qxf5 {[%clk 0:01:22]} 17.
Nxb7 {[%clk 0:02:40.3]} 17... Nd4 {[%clk 0:01:16.2]} 18. Nxd4 {[%clk 0:02:38.2]}
18... exd4 {[%clk 0:01:15.5]} 19. Bf3 {[%clk 0:02:38.5]} 19... Nxd3 {[%clk
0:01:14.1]} 20. Nxd8 {[%clk 0:02:36.3]} 1-0